[Event "Germany Countries-chT Youth 2022"]
[Site "Wiesbaden"]
[Date "2022.10.04"]
[Round "7"]
[White "Leonard, Timo"]
[Black "Stork, Oliver"]
[Result "1/2-1/2"]
[ECO "B06"]
[WhiteElo "2067"]
[BlackElo "2315"]
[Annotator "TA"]
[PlyCount "94"]
[EventDate "2022.09.28"]
[EventType "team-tourn"]
[EventRounds "7"]
[EventCountry "GER"]
[SourceTitle "playchess.com"]
[Source "ChessBase"]
[SourceQuality "1"]
[TimeControl "40/5400+30:1800+30"]

{[%evp 19,94,45,47,16,28,0,44,40,82,-49,0,-16,-16,-9,-24,-10,-11,-11,-10,-10,-10,-64,-67,-62,-70,-62,-15,-8,-8,-16,-2,-72,0,0,0,-4,0,-11,-12,-20,-20,-20,-20,-20,8,8,8,0,0,0,8,0,0,-8,0,-56,0,0,0,0,0,0,0,0,0,0,0,0,0,0,0,0,0,0,0,0,0]} 1. d4 {[%emt 0:00:10][%cal Bd2d4,Bd4d5][%mdl 32]} g6 {[%emt 0:00:09]} 2. e4 {[%emt 0:01:37]} Bg7 {[%emt 0:00:10]} 3. c4 {[%emt 0:00:13]} d6 {[%emt 0:02:08]} 4. Nc3 {[%emt 0:01:10]} c5 {[%emt 0:09:54]} 5. d5 {[%emt 0:00:33]} Nf6 6. h3 {[%emt 0:05:35]} O-O {[%emt 0:04:55]} 7. Nf3 {[%emt 0:00:02]} e6 {[%emt 0:00:15]} 8. Be2 {[%emt 0:01:27]} Re8 {[%emt 0:07:19]} 9. O-O {[%emt 0:02:35]} exd5 {[%emt 0:00:26]} 10. exd5 {[%emt 0:00:07]} Bf5 {[%emt 0:00:07]} 11. Nh4 {[%emt 0:08:52] E91: King's Indian: Classical: 6 Be2, unusual replies including 6...c5 and 6...Bg4.} Bd7 {[%emt 0:26:29]} 12. Bd3 {[%emt 0:04:46]} Na6 {[%emt 0:00:16][%cal Of6d5]} (12... Nxd5 $5 13. Nxd5 Qxh4 $11) 13. Nf3 $1 {[%emt 0:02:12] White is slightly better.} b5 {[%emt 0:03:11] [#]} 14. Nd2 $146 {[%emt 0:17:36]} ({Better is} 14. cxb5 $16 Nc7 15. Qb3 (15. Bg5 h6 $11)) ({Predecessor:} 14. cxb5 Nb4 15. Bb1 a6 16. b6 Bb5 17. a3 Bxf1 18. Kxf1 Qxb6 19. axb4 cxb4 20. Na4 {0-1 (30) Zaichik,G-Gavrikov,V Tbilisi 1976}) 14... Nc7 {[%emt 0:05:08]} (14... Nb4 $15 {is more appropriate.} 15. Bb1 Qa5) 15. cxb5 {[%emt 0:04:40]} Rb8 {[%emt 0:01:20]} 16. Qb3 {[%emt 0:06:49] [#]} Bxb5 $1 {[%emt 0:02:38]} 17. Bxb5 {[%emt 0:02:10]} Nxb5 {[%emt 0:00:07]} ({Much less strong is} 17... a6 18. Bxe8 Rxb3 19. Bxf7+ Kxf7 20. axb3 $16) 18. Nxb5 {[%emt 0:00:07] Black must now prevent Qd3.} a6 {[%emt 0:00:10]} 19. a4 {[%emt 0:00:15][%cal Od2c4]} Qd7 {[%emt 0:02:18][%mdl 64] Pin} 20. Nc4 {[%emt 0:06:56]} axb5 $15 {[%emt 0:00:11]} 21. axb5 {[%emt 0:00:05]} Nxd5 {[%emt 0:06:45]} ({Don't play} 21... Rxb5 22. Qd3 Rbb8 23. Ra6 $11) 22. Ra6 {[%emt 0:06:53]} Nc7 {[%emt 0:17:00]} ({Of course not} 22... Rxb5 23. Qf3 Nc7 24. Rxd6 $14) (22... Bf8 $1 $15 {feels stronger.}) 23. Rxd6 $11 {[%emt 0:06:01]} Qxb5 {[%emt 0:00:05]} 24. Qxb5 {[%emt 0:00:15]} Nxb5 {[%emt 0:00:03]} 25. Rc6 {[%emt 0:01:44]} (25. Rd5 $11 {keeps the balance.}) 25... Rec8 {[%emt 0:04:23]} (25... Nd4 $17 26. Rc7 Ne2+ 27. Kh1 Nxc1 28. Rxc1 Re2 29. Rxc5 Rxf2) 26. Rxc8+ {[%emt 0:00:38]} Rxc8 {[%emt 0:00:01]} 27. Re1 {[%emt 0:03:11]} Nd4 {[%emt 0:04:12]} 28. Nd6 {[%emt 0:04:14]} Rb8 {[%emt 0:00:35]} 29. Kf1 {[%emt 0:04:54]} Ne6 {[%emt 0:00:47]} 30. Nc4 {[%emt 0:02:39]} Rb4 {[%emt 0:00:30]} 31. Ne5 {[%emt 0:00:39]} h5 {[%emt 0:01:32] [#]} 32. Nxg6 $1 {[%emt 0:04:00]} Bxb2 {[%emt 0:00:13]} 33. Bxb2 {[%emt 0:00:10]} Rxb2 {[%emt 0:00:07][%mdl 4096] Endgame KRN-KRN} 34. Ne5 {[%emt 0:00:23]} Kg7 {[%emt 0:00:55]} 35. Rc1 {[%emt 0:00:56]} Rb5 {[%emt 0:00:27]} 36. Nd7 {[%emt 0:00:54]} Kg6 {[%emt 0:00:36]} 37. Ke2 {[%emt 0:01:05]} (37. Ne5+ $11 Kf6 38. Nc4) 37... Kf5 {[%emt 0:00:17]} (37... f6 $1 $15 38. Kd3 Kf7) 38. g3 {[%emt 0:01:41] The position is equal.} Ra5 {[%emt 0:02:47]} 39. Kd3 {[%emt 0:00:58]} Ra3+ {[%emt 0:00:46]} 40. Kc4 {[%emt 0:00:37]} Ra2 {[%emt 0:00:41]} 41. Nxc5 {[%emt 0:04:55]} Nxc5 {[%emt 0:03:06]} 42. Kxc5 {[%emt 0:00:52]} Rxf2 {[%emt 0:00:05] KR-KR} 43. Kd4 {[%emt 0:00:32]} Rf3 {[%emt 0:02:49]} 44. Rc5+ {[%emt 0:04:50]} Kg6 {[%emt 0:00:09]} 45. Rc3 {[%emt 0:03:49]} Rf1 {[%emt 0:00:10]} 46. Ke4 {[%emt 0:00:32]} Kg5 {[%emt 0:00:42]} 47. Rc8 {[%emt 0:03:56]} Kg6 {[%emt 0:03:50] Weighted Error Value: White=0.20 (precise) /Black=0.13 (very precise)} 1/2-1/2

[Event "Germany Countries-chT Youth 2022"]
[Site "Wiesbaden"]
[Date "2022.10.04"]
[Round "7"]
[White "Bosselmann, Tom Linus"]
[Black "von Mettenheim, Johannes"]
[Result "1/2-1/2"]
[ECO "D37"]
[WhiteElo "2061"]
[BlackElo "2231"]
[Annotator "TA"]
[PlyCount "75"]
[EventDate "2022.09.28"]
[EventType "team-tourn"]
[EventRounds "7"]
[EventCountry "GER"]
[SourceTitle "playchess.com"]
[Source "ChessBase"]
[SourceQuality "1"]
[TimeControl "40/5400+30:1800+30"]

{[%evp 9,75,29,21,0,0,0,15,0,0,0,29,38,36,29,118,130,85,-14,207,154,156,140,133,114,116,116,285,284,391,285,391,369,491,486,1090,233,233,226,233,211,223,211,211,211,211,211,267,271,277,277,275,278,285,283,285,0,272,0,259,248,285,270,270,245,233,224,202,195]} 1. d4 {[%emt 0:00:03]} Nf6 {[%emt 0:00:10]} 2. c4 {[%emt 0:00:11]} e6 {[%emt 0:00:06]} 3. Nf3 {[%emt 0:00:23]} d5 {[%emt 0:00:07]} 4. Nc3 {[%emt 0:00:54]} dxc4 {[%emt 0:00:56]} 5. e4 {[%emt 0:06:43]} Bb4 {[%emt 0:01:09]} 6. Bxc4 {[%emt 0:03:24] D24: Queen's Gambit Accepted: 3 Nf3 Nf6 4 Nc3.} Nxe4 {[%emt 0:00:15]} 7. O-O {[%emt 0:00:15]} Nxc3 {[%emt 0:00:11]} 8. bxc3 {[%emt 0:00:08] The position is equal.} ({Reject} 8. Qb3 Nd5 9. Bxd5 Qxd5 $17) 8... Be7 {[%emt 0:00:26]} 9. Ne5 {[%emt 0:00:24]} Nd7 {[%emt 0:01:10]} 10. Qg4 {[%emt 0:08:27][%cal Oe5f7]} Nxe5 {[%emt 0:01:29]} 11. dxe5 {[%emt 0:00:18] [#] Hoping for Rd1.} g6 $146 {[%emt 0:00:53]} (11... Kf8 $11 {keeps the balance.}) ({Predecessor:} 11... Kf8 12. Rd1 Qe8 13. Bg5 Bd7 14. Rd4 Bxg5 15. Qxg5 Qe7 16. Qg3 Bc6 17. Rad1 g6 {0-1 (90) Gozzoli,Y (2580)-Hambleton,A (2441) Chess.com INT 2016}) 12. Rd1 $36 {[%emt 0:05:34][%mdl 2048] White has strong initiative.} Bd7 {[%emt 0:00:10]} 13. Rd3 {[%emt 0:04:14] White is much more active. The black rooks are badly placed.} (13. Bh6 $16) 13... c5 $2 {[%emt 0:14:23]} (13... h5 $1 $11 {and Black stays safe.} 14. Qf4 Qc8) 14. Bb5 {[%emt 0:11:03]} Bxb5 {[%emt 0:00:07]} 15. Rxd8+ {[%emt 0:00:03]} Rxd8 {[%emt 0:00:20] [#]} 16. Bh6 $1 {[%emt 0:02:19]} Bc6 {[%emt 0:15:41] [#]} 17. Rd1 $1 {[%emt 0:01:21]} f5 $2 {[%emt 0:04:43]} (17... Rg8 $16 {is a better defense.}) 18. exf6 $1 $18 {[%emt 0:01:18][%mdl 64] Discovered Attack} Rxd1+ {[%emt 0:00:07]} 19. Qxd1 {[%emt 0:00:05]} Bxf6 {[%emt 0:00:08]} 20. Qd6 $1 {[%emt 0:04:48][%csl LRc5,LRe6]} Kf7 {[%emt 0:00:07] And now ...Rd8 would win.} 21. Qc7+ {[%emt 0:03:26]} Be7 {[%emt 0:00:16]} (21... Ke8 $142 22. c4 a6) 22. Bg5 $2 {[%emt 0:00:56]} (22. Qf4+ Ke8 23. Qb8+ Bd8 24. Qe5) 22... Re8 {[%emt 0:00:06]} 23. Qf4+ {[%emt 0:00:28]} Kg8 {[%emt 0:02:48]} 24. Bh6 {[%emt 0:05:20]} Rd8 {[%emt 0:08:16][%cal Rd8d1]} 25. f3 {[%emt 0:01:35] Black must now prevent Qe5.} Bf8 {[%emt 0:03:09]} 26. Bxf8 {[%emt 0:02:33]} Rxf8 {[%emt 0:00:10][%mdl 4096] Endgame KQ-KRB} 27. Qd6 {[%emt 0:00:20][%csl LRc5,LRe6]} Bd5 {[%emt 0:05:08]} 28. Qxc5 {[%emt 0:01:27]} Bxa2 {[%emt 0:01:10]} 29. Qxa7 {[%emt 0:00:50]} Bd5 {[%emt 0:00:05]} 30. Qc5 {[%emt 0:03:39]} Rf4 {[%emt 0:00:36]} 31. Qc8+ {[%emt 0:00:09]} Rf8 {[%emt 0:00:07]} 32. Qc5 {[%emt 0:00:10]} Rf4 $1 {[%emt 0:00:06]} 33. Qc8+ {[%emt 0:06:39]} Rf8 {[%emt 0:00:07]} 34. Qc7 {[%emt 0:00:25]} b5 {[%emt 0:00:17]} 35. Kf2 {[%emt 0:02:26]} Bc4 {[%emt 0:06:15]} 36. Kg3 {[%emt 0:01:01]} Rf5 {[%emt 0:02:00]} 37. h3 {[%emt 0:04:31]} Rd5 {[%emt 0:07:39]} 38. Qb8+ {[%emt 0:15:01] Weighted Error Value: White=0.49/Black=0.35} 1/2-1/2

[Event "Germany Countries-chT Youth 2022"]
[Site "Wiesbaden"]
[Date "2022.10.04"]
[Round "7"]
[White "Chassard, Cedric"]
[Black "Hommer, Jeremy"]
[Result "1/2-1/2"]
[ECO "B12"]
[WhiteElo "2042"]
[BlackElo "2184"]
[Annotator "TA"]
[PlyCount "86"]
[EventDate "2022.09.28"]
[EventType "team-tourn"]
[EventRounds "7"]
[EventCountry "GER"]
[SourceTitle "playchess.com"]
[Source "ChessBase"]
[SourceQuality "1"]
[TimeControl "40/5400+30:1800+30"]

{[%evp 13,86,72,78,63,60,63,137,107,94,110,120,115,108,93,140,48,72,46,58,60,62,54,73,83,88,84,115,118,111,31,88,87,74,85,80,81,84,81,86,80,76,76,75,59,60,54,68,68,57,70,55,60,48,46,104,75,145,144,232,232,308,143,129,133,145,136,129,0,0,0,0,0,0,0,0]} 1. e4 {[%emt 0:00:03]} c6 {[%emt 0:00:07]} 2. d4 {[%emt 0:00:04]} d5 {[%emt 0:00:12]} 3. e5 {[%emt 0:00:04]} Bf5 {[%emt 0:00:09]} 4. Nf3 {[%emt 0:00:03]} e6 {[%emt 0:00:11]} 5. Be2 {[%emt 0:00:04]} Nd7 {[%emt 0:00:10]} 6. O-O {[%emt 0:00:15]} c5 {[%emt 0:00:10]} 7. c4 {[%emt 0:03:12]} dxc4 {[%emt 0:06:27]} 8. Na3 {[%emt 0:03:13] B12: Caro-Kann: Advance Variation.} cxd4 {[%emt 0:06:04] White must now prevent ...d3.} 9. Nxc4 {[%emt 0:02:02]} b5 {[%emt 0:09:18]} (9... d3 $1 $14 10. Bxd3 Bxd3 11. Qxd3 Nb6) 10. Nd6+ {[%emt 0:01:42] White is clearly better.} Bxd6 {[%emt 0:00:18]} 11. exd6 {[%emt 0:00:06]} d3 {[%emt 0:04:22]} 12. Bxd3 {[%emt 0:00:18]} Bxd3 {[%emt 0:00:22]} 13. Qxd3 {[%emt 0:00:02] [#]} a6 $146 {[%emt 0:00:25]} ({Black should play} 13... Ngf6) ({Predecessor:} 13... Qb8 14. Bf4 Ngf6 15. h3 O-O 16. Rac1 Nd5 17. Bg3 Qb7 18. Nd4 a6 19. Nc6 N7b6 20. Rfd1 Rfc8 21. Na5 Qd7 22. b3 Rxc1 23. Rxc1 Rc8 24. Qd2 f6 {½-½ (24) Vaysberg,A (2058)-Alber,W (1818) Oeffingen 2013}) 14. a4 {[%emt 0:12:12]} (14. Nd4 $16) 14... bxa4 {[%emt 0:03:23]} 15. Be3 {[%emt 0:01:19]} Ngf6 {[%emt 0:07:28]} 16. Rxa4 {[%emt 0:01:35]} O-O {[%emt 0:09:05]} 17. Rxa6 {[%emt 0:02:19] White has more active pieces. The black rooks are badly placed.} Rxa6 {[%emt 0:03:46]} 18. Qxa6 {[%emt 0:00:04]} Qb8 {[%emt 0:00:24]} 19. Bd4 {[%emt 0:14:20]} Qb3 {[%emt 0:08:35]} 20. Rc1 {[%emt 0:03:42]} h6 {[%emt 0:03:47]} 21. Qc4 {[%emt 0:02:36]} (21. h3 $16) 21... Qb8 {[%emt 0:02:27]} (21... Qxc4 $14 22. Rxc4 Nd5) 22. Qc7 $16 {[%emt 0:01:47] And now Bxf6 would win.} Qb5 {[%emt 0:01:42]} 23. Qc6 {[%emt 0:07:19]} Rb8 {[%emt 0:04:53]} 24. h3 {[%emt 0:08:56]} e5 {[%emt 0:03:32]} 25. Qxb5 {[%emt 0:01:24]} Rxb5 {[%emt 0:00:03]} 26. Rc8+ {[%emt 0:01:30]} Kh7 {[%emt 0:00:07]} 27. Bc3 {[%emt 0:00:07]} Rd5 {[%emt 0:01:25]} 28. Rc7 {[%emt 0:07:28]} e4 {[%emt 0:03:14]} 29. Nd4 {[%emt 0:10:23]} Rxd6 {[%emt 0:00:53]} 30. Kf1 {[%emt 0:03:05]} Kg6 {[%emt 0:01:08]} 31. Nc6 {[%emt 0:02:32]} Re6 {[%emt 0:06:04]} 32. Bd4 {[%emt 0:05:17]} Rd6 {[%emt 0:03:42]} 33. b4 {[%emt 0:00:55][%cal Bb2b4,Bb4b5][%mdl 32]} Kf5 {[%emt 0:01:27]} (33... Kh7 $1 $14) 34. b5 {[%emt 0:02:06]} Ke6 {[%emt 0:00:38]} (34... Nd5 $142 35. g4+ Kg5) 35. Ke2 {[%emt 0:02:10]} Kd5 {[%emt 0:07:02]} (35... Ne8 $16 {might work better.} 36. Ra7 f5) 36. Be3 {[%emt 0:01:30] Nd8 is the strong threat.} g5 {[%emt 0:01:48]} 37. Ne7+ {[%emt 0:00:51]} (37. g4 $18 {and White stays clearly on top.}) 37... Ke6 {[%emt 0:00:18]} 38. Nc8 $1 {[%emt 0:00:32]} Rd3 {[%emt 0:02:15] [#]} 39. Rc6+ $1 {[%emt 0:01:04]} Ke5 {[%emt 0:00:20] [#]} 40. Nb6 {[%emt 0:01:42]} (40. Bc1 $1 $16 {[%cal Rc1b2] Strongly threatening Bb2+.} Rb3 41. Nd6) 40... Nxb6 $11 {[%emt 0:00:45] The position is equal.} 41. Bxb6 {[%emt 0:04:16] Hoping for Bc7+.} Nd5 {[%emt 0:01:47] aiming for ...Nc3+.} 42. Bc7+ {[%emt 0:03:24]} (42. Rxh6 $2 {is a self mate.} Nc3+ 43. Kf1 Rd1#) 42... Nxc7 {[%emt 0:00:49]} 43. Rxc7 {[%emt 0:00:05]} Rb3 {[%emt 0:00:24] Weighted Error Value: White=0.20 (precise) /Black=0.18 (very precise)} 1/2-1/2

[Event "Germany Countries-chT Youth 2022"]
[Site "Wiesbaden"]
[Date "2022.10.04"]
[Round "7"]
[White "Kempe, Caius Emilian"]
[Black "Uhlmann, Tim"]
[Result "1-0"]
[ECO "D32"]
[WhiteElo "2030"]
[BlackElo "1841"]
[Annotator "TA"]
[PlyCount "219"]
[EventDate "2022.09.28"]
[EventType "team-tourn"]
[EventRounds "7"]
[EventCountry "GER"]
[SourceTitle "playchess.com"]
[Source "ChessBase"]
[SourceQuality "1"]
[TimeControl "40/5400+30:1800+30"]

{[%evp 16,218,67,51,77,75,75,0,36,31,31,34,73,72,120,48,40,27,35,-4,81,79,76,75,111,116,114,116,155,141,189,165,199,211,213,214,207,210,325,315,290,298,306,200,205,207,207,218,261,240,260,263,274,253,253,253,253,253,253,253,256,256,303,253,253,227,222,228,446,431,408,337,970,913,951,779,683,643,628,575,439,312,1482,1237,29947,29948,29947,29948,29948,29950,29950,29949,29944,29945,29952,29949,29946,29948,29947,29949,29960,29961,29960,29959,29961,29960,29960,29960,29961,29961,29962,29963,29963,29964,29964,29965,29966,29967,29969,29967,29967,29968,29968,29969,29969,29969,29968,29969,29969,29971,29971,29972,29972,29974,29975,29976,29977,29976,29972,29974,29974,29975,29974,29974,29970,29972,29975,29976,29976,29977,29977,29978,29979,29980,29980,29981,29981,29980,29980,29981,29981,29979,29977,29977,29977,29978,29978,29979,29979,29980,29980,29981,29981,29980,29982,29983,29983,29984,29984,29985,29985,29986,29989,29990,29990,29990,29991,29992,29992,29992,29992,4145,29993,29994,29994,29995,29995,29996,29996,29997,29997,29998,29998,29999,29999]} 1. d4 {[%emt 0:00:03]} d5 {[%emt 0:00:03]} 2. c4 {[%emt 0:00:08]} e6 {[%emt 0:00:04]} 3. Nc3 {[%emt 0:00:08]} c5 {[%emt 0:00:06]} 4. cxd5 {[%emt 0:00:59]} cxd4 {[%emt 0:00:16]} 5. Qxd4 {[%emt 0:00:27]} Nc6 {[%emt 0:00:08][%cal Bb8c6,Bc6b4,Bb4d3][%mdl 32]} 6. Qd1 {[%emt 0:02:10]} exd5 {[%emt 0:00:05]} 7. Qxd5 {[%emt 0:00:50]} Be6 {[%emt 0:00:06]} 8. Qxd8+ {[%emt 0:02:23]} Rxd8 {[%emt 0:00:07]} 9. e3 {[%emt 0:02:20]} Nb4 {[%emt 0:00:17] [#] ...Nc2+ is the strong threat. D32: Tarrasch Defence: Sidelines and lines without g3.} 10. Bb5+ {[%emt 0:00:09]} Ke7 {[%emt 0:00:04]} 11. Ke2 {[%emt 0:01:45]} (11. Rb1 $16) 11... a6 {[%emt 0:01:40] The position is equal.} (11... Nc2 $5 {[%cal Rc2a1]}) 12. Ba4 {[%emt 0:00:13]} ({Wrong is} 12. a3 $2 Nc2 13. Rb1 axb5 $19) 12... Bc4+ {[%emt 0:00:19]} 13. Kf3 {[%emt 0:00:27]} Nd3 {[%emt 0:00:48]} 14. Nge2 {[%emt 0:01:27]} Rd6 {[%emt 0:06:08] [#]} (14... Nf6 $142) 15. Nf4 $146 {[%emt 0:06:41]} (15. g3 $16) ({Predecessor:} 15. Rd1 Ne5+ 16. Ke4 Nd3 17. Kf3 Rf6+ 18. Nf4 Rd6 19. Nxd3 Rxd3 20. Rxd3 Bxd3 21. e4 {1-0 (47) Rotaenko,P-Pryimachenko,V Kiev 2005}) 15... Ne5+ $1 $14 {[%emt 0:05:04]} 16. Kg3 {[%emt 0:00:08]} g5 {[%emt 0:00:16]} 17. Nfe2 {[%emt 0:02:24]} h5 {[%emt 0:10:47]} (17... Nf6 $11 {keeps the balance.} 18. h3 Rg8) 18. h3 $36 {[%emt 0:01:40][%mdl 2048] White has strong initiative. White now steadily converts the win.} Nf6 {[%emt 0:08:34]} 19. Nd4 {[%emt 0:01:19] Hoping for b3.} Be6 {[%emt 0:11:23]} 20. Bc2 {[%emt 0:04:22]} b5 {[%emt 0:11:42]} 21. b3 {[%emt 0:03:29]} b4 {[%emt 0:00:12]} 22. Nce2 {[%emt 0:00:01]} h4+ {[%emt 0:09:58]} 23. Kh2 {[%emt 0:00:01]} g4 {[%emt 0:00:18]} 24. Bb2 {[%emt 0:01:27]} gxh3 {[%emt 0:03:24]} 25. gxh3 {[%emt 0:00:01]} Rg8 {[%emt 0:02:16][%cal Of6g4]} 26. Rhg1 {[%emt 0:01:30] Prevents Nfg4+.} Nfg4+ {[%emt 0:06:09]} (26... Rxg1 {keeps fighting.} 27. Rxg1 Bh6) 27. hxg4 $18 Nxg4+ {[%emt 0:00:04] [#]} 28. Rxg4 $1 {[%emt 0:01:13]} Rxg4 {[%emt 0:00:05]} 29. Rg1 {[%emt 0:06:12]} Rxg1 {[%emt 0:00:27]} 30. Nxg1 {[%emt 0:00:21]} Bg7 {[%emt 0:01:36]} 31. Ngf3 {[%emt 0:01:22]} a5 {[%emt 0:01:32]} 32. Be4 {[%emt 0:01:57]} Ra6 {[%emt 0:01:33]} 33. Nxh4 {[%emt 0:02:39]} Bxd4 {[%emt 0:00:18]} 34. Bxd4 {[%emt 0:00:06]} a4 {[%emt 0:00:06]} 35. Bc5+ {[%emt 0:03:04]} Kd7 {[%emt 0:01:50]} 36. Bxb4 {[%emt 0:01:22] Threatens to win with bxa4.} axb3 37. axb3 {[%emt 0:00:03]} Bxb3 {[%emt 0:00:29]} 38. Bc3 {[%emt 0:00:22]} Be6 {[%emt 0:01:56]} 39. Bd4 {[%emt 0:00:09]} Ra5 {[%emt 0:01:50]} 40. Kg3 {[%emt 0:01:41]} Rg5+ {[%emt 0:00:36]} 41. Kf3 {[%emt 0:30:01]} Bd5 $2 {[%emt 0:40:34]} (41... Ke7 {was worth a try.} 42. Ke2 Ra5) 42. Kf4 {[%emt 0:04:49]} Rh5 {[%emt 0:00:11]} 43. Nf5 {[%emt 0:03:09]} Bxe4 {[%emt 0:00:51]} (43... Bc4 44. Kg4 Rh2) 44. Kxe4 {[%emt 0:00:01]} Rg5 {[%emt 0:02:35]} 45. f4 {[%emt 0:00:08]} Rg6 {[%emt 0:00:44]} 46. Ng7 {[%emt 0:00:23]} Ra6 {[%emt 0:04:55]} 47. Kf5 {[%emt 0:03:04]} Ke7 {[%emt 0:00:00]} 48. e4 {[%emt 0:00:00][%cal Be3e4,Be4e5][%mdl 32]} Ra5+ $2 {[%emt 0:00:00]} (48... Rh6 49. Be5 Rc6) 49. e5 {[%emt 0:00:00] And now Bb6 would win.} f6 {[%emt 0:00:00]} 50. Bc3 {[%emt 0:00:00]} Rb5 {[%emt 0:00:00]} 51. Be1 {[%emt 0:00:00]} fxe5 {[%emt 0:00:00]} 52. fxe5 {[%emt 0:00:00]} Kf7 {[%emt 0:00:00]} 53. Ne6 {[%emt 0:00:00]} Rb1 {[%emt 0:00:00]} 54. Bh4 {[%emt 0:00:00]} Rb5 {[%emt 0:00:00]} 55. Bf6 {[%emt 0:00:00]} Ra5 {[%emt 0:00:00]} 56. Ng5+ {[%emt 0:00:00]} Ke8 {[%emt 0:00:00]} 57. Ne4 {[%emt 0:00:00]} Rd5 {[%emt 0:00:00]} 58. Ke6 {[%emt 0:00:00]} Ra5 {[%emt 0:00:00]} 59. Nd6+ {[%emt 0:00:00]} Kf8 {[%emt 0:00:00]} 60. Be7+ {[%emt 0:00:00]} Kg7 {[%emt 0:00:00]} 61. Ne8+ {[%emt 0:00:00]} Kg6 {[%emt 0:00:00]} 62. Bd6 {[%emt 0:00:00]} Ra8 {[%emt 0:00:00]} 63. Kd7 {[%emt 0:00:00]} Kf5 {[%emt 0:00:00]} 64. Nc7 {[%emt 0:00:00]} Rh8 {[%emt 0:00:57]} 65. e6 {[%emt 0:00:00]} Rh7+ {[%emt 0:01:12]} 66. e7 {[%emt 0:00:00]} Kf6 {[%emt 0:00:49]} 67. Kd8 {[%emt 0:00:00]} Rh8+ {[%emt 0:00:28]} 68. e8=Q {[%emt 0:00:00]} Rxe8+ {[%emt 0:00:07]} 69. Nxe8+ {[%emt 0:00:00]} Ke6 {[%emt 0:00:09]} 70. Bb4 {[%emt 0:00:00]} Kd5 {[%emt 0:00:15]} 71. Kd7 {[%emt 0:00:00]} Ke5 {[%emt 0:00:19]} 72. Bd6+ {[%emt 0:00:00]} Kd5 {[%emt 0:00:09]} 73. Nf6+ {[%emt 0:00:00]} Kd4 {[%emt 0:00:09]} 74. Ke6 {[%emt 0:00:00]} Kc4 {[%emt 0:00:15]} 75. Ke5 {[%emt 0:00:00]} Kd3 {[%emt 0:00:20]} 76. Nd5 {[%emt 0:00:00]} Kc4 {[%emt 0:00:15]} 77. Ke4 {[%emt 0:00:00]} Kb5 {[%emt 0:00:12]} 78. Kd4 {[%emt 0:00:00]} Kc6 {[%emt 0:00:08]} 79. Ba3 {[%emt 0:00:00]} Kd7 {[%emt 0:00:11]} 80. Nf4 {[%emt 0:00:00]} Kc6 {[%emt 0:00:07]} 81. Bc5 {[%emt 0:00:00]} Kd7 {[%emt 0:00:39]} 82. Kd5 {[%emt 0:00:00]} Kc7 {[%emt 0:00:03]} 83. Ne6+ {[%emt 0:00:00]} Kd7 {[%emt 0:00:24]} 84. Bd6 {[%emt 0:00:00]} Kc8 {[%emt 0:00:05]} 85. Nc5 {[%emt 0:00:00]} Kd8 {[%emt 0:00:05]} 86. Ke6 {[%emt 0:00:00]} Kc8 {[%emt 0:00:14]} 87. Be5 {[%emt 0:00:00]} Kd8 {[%emt 0:00:13]} 88. Bb8 {[%emt 0:00:00]} Kc8 {[%emt 0:00:10]} 89. Nd7 {[%emt 0:00:00]} Kb7 {[%emt 0:00:10]} 90. Kd6 {[%emt 0:00:00]} Ka8 {[%emt 0:00:08]} 91. Bc7 {[%emt 0:00:00]} Kb7 {[%emt 0:00:06]} 92. Nb6 {[%emt 0:00:00]} Ka6 {[%emt 0:00:38]} 93. Kc6 {[%emt 0:00:00]} Ka7 {[%emt 0:00:09]} 94. Bd6 {[%emt 0:00:00]} Ka6 {[%emt 0:00:04]} 95. Bb8 {[%emt 0:00:00]} Ka5 {[%emt 0:00:04]} 96. Nd5 {[%emt 0:00:00]} Ka4 {[%emt 0:00:12]} 97. Kc5 {[%emt 0:00:00]} Kb3 {[%emt 0:00:24]} 98. Nb4 {[%emt 0:00:00]} Ka4 {[%emt 0:00:10]} 99. Kc4 {[%emt 0:00:00]} Ka5 {[%emt 0:00:08]} 100. Bc7+ {[%emt 0:00:00]} Ka4 {[%emt 0:00:17]} 101. Nd3 {[%emt 0:00:00]} Ka3 {[%emt 0:00:13]} 102. Bd8 {[%emt 0:00:00]} Ka4 {[%emt 0:00:23]} 103. Nb2+ {[%emt 0:00:00]} Ka3 {[%emt 0:00:04]} 104. Kc3 {[%emt 0:00:00] White mates.} Ka2 {[%emt 0:00:04]} 105. Kc2 {[%emt 0:00:00]} Ka3 {[%emt 0:00:13]} 106. Be7+ {[%emt 0:00:00]} Ka2 {[%emt 0:00:04]} 107. Nd3 {[%emt 0:00:00]} Ka1 {[%emt 0:00:11]} 108. Bd6 {[%emt 0:00:00]} Ka2 {[%emt 0:00:06]} 109. Nc1+ {[%emt 0:00:00]} Ka1 {[%emt 0:00:05]} 110. Be5# {[%emt 0:00:00] Weighted Error Value: White=0.24 (precise) /Black=0.41} 1-0